bitfinex-derivatives/quotes_ETHF0:USTF0_20250316
["timestamp","ask_amount","ask_price","bid_price","bid_amount"]
[1742158166241,2.1555,1888.7,1888.6,9.01797]
[1742158166741,0.00794155,1888.8,1888.7,0.84712]
[1742158166935,0.00794155,1888.8,1888.7,2.98382]
[1742158167840,0.00794155,1888.8,1888.7,3.65762]
[1742158168041,1.35314155,1888.8,1888.7,3.65762]
[1742158170345,0.00794155,1888.8,1888.7,3.65762]
[1742158171145,1.3624,1889.0,1888.9,0.84703]
[1742158171442,1.3624,1889.0,1888.9,4.40103]
[1742158171946,1.3624,1889.0,1888.9,5.82383]
[1742158172443,0.00794155,1889.1,1889.0,0.84699]
[1742158172744,0.00794155,1889.1,1889.0,6.89739]
[1742158182355,0.00794155,1889.1,1889.0,3.68959]
[1742158182555,0.00794155,1889.1,1889.0,6.89739]
[1742158183452,0.6948,1889.4,1889.3,0.84685]
[1742158183751,0.84662,1889.9,1889.6,0.84672]
[1742158183951,0.6903,1889.8,1889.6,4.83058499]
[1742158184453,0.6903,1889.8,1889.7,0.84667]
[1742158184651,0.6903,1889.8,1889.6,4.39969]
[1742158184847,0.6903,1889.8,1889.7,1.3833]
[1742158185049,0.6903,1889.8,1889.7,2.22997]
[1742158185249,0.6903,1889.8,1889.7,1.3833]
[1742158185555,0.00794155,1889.9,1889.7,2.22995]
[1742158185855,0.69824155,1889.9,1889.7,1.53035]
[1742158186058,2.15644155,1889.9,1889.7,2.91365]
[1742158186556,1.4582,1889.8,1889.7,2.91365]
[1742158188245,0.84667,1889.7,1889.6,4.3997]
[1742158188453,2.30486,1889.8,1889.7,0.84667]
[1742158188652,0.84667,1889.7,1889.6,5.85828]
[1742158188852,2.18807,1889.7,1889.6,5.85828]
[1742158189854,1.3414,1889.7,1889.6,5.85828]
[1742158191558,2.18807,1889.7,1889.6,5.85828]
[1742158191957,1.3414,1889.7,1889.6,5.85828]
[1742158194153,2.18807,1889.7,1889.6,5.85828]
[1742158194351,1.3414,1889.7,1889.6,5.85828]
[1742158195358,1.54484155,1889.9,1889.7,0.84664]
[1742158195560,1.4463,1889.8,1889.7,2.19844]
[1742158196453,2.29293,1889.8,1889.7,2.19844]
[1742158196655,1.4463,1889.8,1889.7,2.19844]
[1742158199350,1.4463,1889.8,1889.7,5.40624]
[1742158200255,0.00794155,1889.9,1889.8,0.84663]
[1742158201364,0.00794155,1889.9,1889.7,4.74034]
[1742158201570,2.21176155,1889.9,1889.7,4.74034]
[1742158201863,1.3572,1889.8,1889.7,4.29546373]
[1742158202455,1.3572,1889.8,1889.7,5.14213373]
[1742158202958,2.20383,1889.8,1889.7,5.14213373]
[1742158203163,2.20383,1889.8,1889.7,4.29546373]
[1742158203667,2.20383,1889.8,1889.7,5.14213373]
[1742158203867,1.3572,1889.8,1889.7,5.14213373]
[1742158205763,2.20383,1889.8,1889.7,5.14213373]
[1742158205972,2.20383,1889.8,1889.7,8.00623373]
[1742158206268,2.91303,1889.8,1889.7,8.00623373]
[1742158206466,2.91303,1889.8,1889.7,3.2078]
[1742158207871,0.84672,1889.6,1889.5,5.83018155]
[1742158208670,1.4422,1889.6,1889.5,5.83018155]
[1742158209063,2.28892,1889.6,1889.5,5.83018155]
[1742158210672,1.4422,1889.6,1889.5,5.83018155]
[1742158211073,1.4422,1889.6,1889.5,6.55298155]
[1742158211769,0.00794155,1889.9,1889.8,0.84663]
[1742158212269,0.00794155,1889.9,1889.8,4.39663]
[1742158212668,0.00794155,1889.9,1889.8,5.05703]
[1742158213174,0.00794155,1889.9,1889.8,6.44893]
[1742158218385,0.00794155,1889.9,1889.8,10.04432638]
[1742158220566,1.3561,1890.0,1889.9,0.84658]
[1742158220780,0.84644,1890.3,1889.9,1.3328]
[1742158221077,1.3456,1890.2,1890.1,0.84646]
[1742158221277,1.3456,1890.2,1890.1,2.21656]
[1742158222475,1.3456,1890.2,1890.1,2.93306]
[1742158223177,2.0069,1890.2,1890.1,2.93306]
[1742158224179,1.3456,1890.2,1890.1,6.48206]
[1742158224480,0.00794155,1890.3,1890.2,0.84645]
[1742158224674,0.00794155,1890.3,1890.2,5.43375]
[1742158229381,0.85434155,1890.3,1890.2,8.98175]
[1742158229571,0.84645,1890.2,1890.1,0.7165]
[1742158229776,0.84649,1890.1,1890.0,3.2078]
[1742158230184,2.16649,1890.1,1890.0,4.5381]
[1742158230380,2.16649,1890.1,1890.0,5.38464]
[1742158231988,1.32,1890.1,1890.0,5.38464]
[1742158233183,2.16649,1890.1,1890.0,5.38464]
[1742158234786,1.32,1890.1,1890.0,5.38464]
[1742158235389,2.16649,1890.1,1890.0,5.38464]
[1742158239793,1.32,1890.1,1890.0,5.38464]
[1742158239989,0.00794155,1890.3,1890.0,5.38464]
[1742158240302,0.00794155,1890.3,1890.2,4.05425]
[1742158240501,0.00794155,1890.3,1890.2,7.60125]
[1742158240698,0.00794155,1890.3,1890.2,8.94405]
[1742158241598,1.3192,1890.5,1890.4,0.84636]
[1742158242303,1.3192,1890.5,1890.4,1.54416]
[1742158243195,1.3192,1890.5,1890.4,4.75196]
[1742158243498,1.3192,1890.5,1890.4,5.17153331]
[1742158243695,1.3192,1890.5,1890.4,4.75196]
[1742158244898,1.3192,1890.5,1890.4,1.54416]
[1742158245806,1.3192,1890.5,1890.4,4.75196]
[1742158246106,1.3192,1890.5,1890.4,1.54416]
[1742158246901,1.3192,1890.5,1890.3,1.3428]
[1742158247206,0.84636,1890.4,1890.3,5.6149]
[1742158247400,0.84645,1890.2,1890.1,0.6682]
[1742158247603,2.90814,1890.3,1890.1,1.51468]
[1742158247905,2.19915,1890.2,1890.1,2.84398]
[1742158248105,2.19915,1890.2,1890.1,1.9975]
[1742158249002,1.3527,1890.2,1889.9,4.05437]
[1742158249200,2.82505,1890.3,1889.9,6.7538]
[1742158249201,2.21152,1890.1,1889.9,6.7538]
[1742158249410,0.84652,1890.1,1890.0,2.26054]
[1742158249797,0.709,1890.3,1890.1,0.84648]
[1742158250103,0.709,1890.3,1890.2,1.414]
[1742158250104,1.55544,1890.3,1890.2,1.414]
[1742158250806,0.84645,1890.2,1890.1,0.7061]
[1742158251199,0.84649,1890.1,1890.0,2.26053]
[1742158251506,0.84649,1890.1,1890.0,2.26051]
[1742158252504,0.709,1890.3,1890.0,1.414]
[1742158252707,0.84641,1890.3,1890.2,0.84641]
[1742158252906,4.75269,1890.4,1890.3,0.8464]
[1742158253201,0.8464,1890.3,1890.2,1.57152]
[1742158253406,0.8464,1890.3,1890.2,0.7251]
[1742158253799,0.8464,1890.3,1890.2,2.1217]
[1742158256202,6.02222,1890.4,1889.9,8.29595]
[1742158256407,0.84651,1890.1,1890.0,1.4565]
[1742158256609,0.84651,1890.1,1890.0,2.30304]
[1742158257607,0.84649,1890.1,1890.0,2.30304]
[1742158258809,3.9063,1890.4,1890.0,2.30304]
[1742158259008,0.84645,1890.2,1890.1,1.44]
[1742158259410,0.84645,1890.2,1890.1,2.28649]
[1742158259608,0.84645,1890.2,1890.1,1.44]
[1742158260512,0.84645,1890.2,1890.1,2.28649]
[1742158260715,0.84645,1890.2,1890.1,1.44]
[1742158264312,0.84645,1890.2,1890.1,2.28649]
[1742158265804,0.84645,1890.2,1890.1,1.44]
[1742158266007,0.84645,1890.2,1890.1,2.28649]
[1742158266201,0.84645,1890.2,1890.1,1.44]
[1742158266607,0.84645,1890.2,1890.1,2.28649]
[1742158266808,2.18834,1890.3,1890.1,2.28649]
[1742158267010,2.18834,1890.3,1890.2,1.4179]
[1742158267211,0.84644,1890.3,1890.2,1.4179]
[1742158268409,0.84644,1890.3,1890.2,2.26435]
[1742158268611,0.84644,1890.3,1890.2,1.4179]
[1742158280233,0.84649,1890.1,1890.0,0.84652]
[1742158282141,0.84649,1890.1,1890.0,2.19202]
[1742158283738,0.84654,1890.0,1889.9,0.6956]
[1742158283942,0.84658,1889.9,1889.8,1.3455]
[1742158284832,4.61647,1889.9,1889.5,0.00794155]
[1742158285032,0.84672,1889.6,1889.5,0.00794155]
[1742158285242,0.84672,1889.6,1889.5,1.44904155]
[1742158288757,0.84672,1889.6,1889.5,0.00794155]
[1742158289349,4.05452,1889.6,1889.5,0.00794155]
[1742158289551,0.84685,1889.3,1889.2,2.8979]
[1742158289951,0.84685,1889.3,1889.2,3.7448]
[1742158290152,0.84685,1889.3,1889.2,2.8979]
[1742158290355,0.84685,1889.3,1889.2,3.7448]
[1742158291961,0.84685,1889.3,1889.2,2.8979]
[1742158292653,0.84685,1889.3,1889.2,3.7448]
[1742158293163,0.84685,1889.3,1889.2,2.8979]
[1742158296659,3.2078,1890.0,1889.3,2.11713]
[1742158296861,0.84659,1889.9,1889.7,0.84663]
[1742158297066,0.6667,1890.3,1889.8,4.6025]
[1742158297264,0.84644,1890.3,1890.1,0.84648]
[1742158297462,0.84644,1890.3,1890.2,1.3947]
[1742158297668,0.84644,1890.3,1890.2,2.7441]
[1742158298759,4.05424,1890.3,1890.2,0.6819]
[1742158299257,0.84644,1890.3,1890.2,1.3947]
[1742158299561,0.84644,1890.3,1890.2,2.7441]
[1742158301660,1.45079436,1890.4,1890.2,2.7441]
[1742158301661,0.00529436,1890.4,1890.2,2.7441]
[1742158301863,0.00529436,1890.4,1890.3,2.2728]
[1742158302459,0.00529436,1890.4,1890.3,5.8158]
[1742158304666,0.85165436,1890.4,1890.3,4.9694]
[1742158305059,0.8464,1890.3,1890.2,0.6819]
[1742158305255,2.2162,1890.3,1890.2,0.6819]
[1742158305460,2.9395,1890.3,1890.2,0.6819]
[1742158308573,0.84645,1890.2,1890.1,1.36014155]
[1742158308868,2.30065,1890.2,1890.1,0.00794155]
[1742158309164,3.01535,1890.2,1890.1,0.00794155]
[1742158309768,2.11628,1890.1,1889.6,0.8467]
[1742158309970,0.84663,1889.8,1889.7,1.4013]
[1742158310564,1.3923,1889.9,1889.7,1.4013]
[1742158310771,0.7147,1890.2,1889.7,1.4013]
[1742158310973,0.8466,1889.9,1889.8,0.84661]
[1742158311168,0.7233,1890.3,1889.8,4.9433]
[1742158311474,0.84649,1890.1,1890.0,0.84652]
[1742158311675,0.84649,1890.1,1890.0,2.20432]
[1742158311866,0.84649,1890.1,1890.0,3.60562]
[1742158312676,0.84649,1890.1,1890.0,3.60564]
[1742158313268,0.84649,1890.1,1890.0,2.7591]
[1742158313863,0.84649,1890.1,1890.0,3.60564]
[1742158314068,0.84649,1890.1,1890.0,2.7591]
[1742158315180,0.84654,1890.0,1889.9,3.2078]
[1742158315477,2.18624,1890.0,1889.9,1.3335]
[1742158316571,2.18624,1890.0,1889.9,2.18008]
[1742158318076,2.18624,1890.0,1889.9,1.3335]
[1742158318683,2.18624,1890.0,1889.9,2.18008]
[1742158319080,3.9311,1890.3,1889.9,1.3335]
[1742158319280,0.84646,1890.2,1890.0,2.0068]
[1742158319475,0.84646,1890.2,1890.1,2.0383]
[1742158319676,4.6119,1890.3,1890.1,2.88476]
[1742158319876,5.4583,1890.3,1890.2,1.3476]
[1742158320175,2.2505,1890.3,1890.2,1.3476]
[1742158320683,2.2505,1890.3,1890.2,2.19405]
[1742158321075,2.2505,1890.3,1890.2,1.3476]
[1742158321683,0.00529436,1890.4,1890.3,0.8464]
[1742158321880,2.16583,1890.7,1890.6,0.84627]
[1742158322877,2.16583,1890.7,1890.6,2.16857]
[1742158323283,2.16583,1890.7,1890.6,1.3223]
[1742158324281,0.84632,1890.5,1890.4,4.2091]
[1742158324478,0.84632,1890.5,1890.4,6.46906]
[1742158324687,0.84632,1890.5,1890.4,2.92703]
[1742158326987,0.84632,1890.5,1890.4,2.0807]
[1742158327577,0.84632,1890.5,1890.4,2.92706]
[1742158327782,0.84632,1890.5,1890.4,2.0807]
[1742158329288,0.84632,1890.5,1890.4,2.92706]
[1742158329489,1.4363,1890.6,1890.4,2.0807]
[1742158329683,2.28257,1890.6,1890.5,1.4326]
[1742158332589,0.00794155,1890.8,1890.5,1.4326]
[1742158332785,0.00794155,1890.8,1890.7,0.84623]
[1742158332980,0.84623,1890.7,1890.6,2.25396]
[1742158333185,2.21164155,1890.8,1890.7,0.84623]
[1742158333381,1.36544155,1890.8,1890.7,2.19063]
[1742158333686,0.85412155,1890.8,1890.7,2.19063]
[1742158333882,0.00794155,1890.8,1890.7,2.19063]
[1742158334084,2.21732155,1890.8,1890.7,2.19063]
[1742158334282,2.21732155,1890.8,1890.7,1.3444]
[1742158335295,0.84623,1890.7,1890.6,1.41564155]
[1742158335583,2.20943,1890.7,1890.6,1.41564155]
[1742158336584,2.20943,1890.7,1890.6,0.00794155]
[1742158336785,2.88033,1890.7,1890.6,0.00794155]
[1742158338390,0.84645,1890.2,1890.1,3.2078]
[1742158339091,0.84645,1890.2,1890.1,4.6109]
[1742158339298,2.18855,1890.2,1890.1,4.6109]
[1742158339496,2.18855,1890.2,1890.1,1.4031]
[1742158339793,0.84649,1890.1,1890.0,0.00794155]
[1742158339987,0.84649,1890.1,1890.0,2.23948155]
[1742158339988,1.4066,1890.1,1890.0,2.23948155]
[1742158340388,2.25309,1890.1,1890.0,2.23948155]
[1742158340892,1.4066,1890.1,1890.0,2.23948155]
[1742158341282,1.4066,1890.3,1890.1,0.84646]
[1742158341487,0.84645,1890.2,1890.1,1.385]
[1742158341686,0.84645,1890.2,1890.1,2.23149]
[1742158342283,1.4066,1890.3,1890.2,0.84645]
[1742158342488,1.4066,1890.3,1890.2,2.87585]
[1742158342693,0.84634,1890.5,1890.4,0.84635]
[1742158342894,2.27654,1890.5,1890.4,0.84635]
[1742158343293,2.27654,1890.5,1890.4,2.20025]
[1742158345694,0.6901,1890.7,1890.4,1.3539]
[1742158345898,2.29068,1890.6,1890.5,2.86068]
[1742158346600,1.4444,1890.6,1890.5,2.86068]
[1742158347500,2.29067,1890.6,1890.5,2.0144]
[1742158348397,2.29067,1890.6,1890.5,1.328]
[1742158349000,0.84636,1890.4,1890.3,8.3075]
[1742158349196,0.84636,1890.4,1890.3,9.7645]
[1742158350402,0.84636,1890.4,1890.3,6.2255]
[1742158352003,0.84636,1890.4,1890.3,5.3791]
[1742158352702,1.51726,1890.4,1890.3,3.2078]
[1742158353097,1.51726,1890.4,1890.3,1.3911]
[1742158359509,1.51726,1890.4,1890.3,2.2375]
[1742158359703,0.84636,1890.4,1890.3,2.2375]
[1742158362910,2.11557,1890.7,1890.3,2.2375]
[1742158362911,3.93304155,1890.8,1890.3,1.3911]
[1742158363107,0.84632,1890.5,1890.4,2.29382]
[1742158365012,0.84632,1890.5,1890.4,1.4475]
[1742158365313,0.84632,1890.5,1890.4,2.29386]
[1742158365815,0.84632,1890.5,1890.4,1.4475]
[1742158366011,2.24152,1890.5,1890.4,1.4475]
[1742158371519,2.24152,1890.5,1890.4,2.29386]
[1742158371715,0.72524155,1890.8,1890.4,8.1923]
[1742158371921,2.26219,1890.6,1890.5,3.62638]
[1742158372228,2.26219,1890.6,1890.5,2.22548]
[1742158372522,1.4159,1890.6,1890.5,2.22548]
[1742158373308,0.85414155,1890.8,1890.7,0.84623]
[1742158373514,0.00794155,1890.8,1890.7,0.84623]
[1742158373715,0.00794155,1890.8,1890.7,4.38323]
[1742158375615,0.00794155,1890.8,1890.7,0.84623]
[1742158376618,1.36804155,1890.8,1890.7,0.84623]
[1742158377926,1.36804155,1890.8,1890.7,4.38323]
[1742158378117,2.21422155,1890.8,1890.7,4.38323]
[1742158378314,1.36804155,1890.8,1890.7,4.38323]
[1742158380028,2.21422155,1890.8,1890.7,4.38323]
[1742158380526,1.36804155,1890.8,1890.7,4.38323]
[1742158381226,2.21422155,1890.8,1890.7,4.38323]
[1742158382132,1.36804155,1890.8,1890.7,4.38323]
[1742158383225,2.21422155,1890.8,1890.7,4.38323]
[1742158383524,1.36804155,1890.8,1890.7,4.38323]
[1742158384918,0.84605,1891.1,1891.0,0.84606]
[1742158385118,4.05384,1891.2,1891.0,0.84606]
[1742158385428,4.05384,1891.2,1890.8,0.6909]
[1742158385429,1.4111,1891.1,1890.8,0.6909]
[1742158385630,1.4111,1891.1,1891.0,0.84609]
[1742158386025,2.25715,1891.1,1891.0,0.84609]
[1742158386922,1.4111,1891.1,1891.0,0.84609]
[1742158387234,2.25715,1891.1,1890.9,2.2328]
[1742158387621,2.25715,1891.1,1891.0,1.3867]
[1742158388831,2.25715,1891.1,1891.0,2.23279]
[1742158391235,2.25715,1891.1,1891.0,1.3867]
[1742158391630,2.25715,1891.1,1891.0,2.23279]
[1742158392228,2.25715,1891.1,1891.0,1.3867]
[1742158392428,2.97405,1891.1,1891.0,1.3867]
[1742158394440,2.97405,1891.1,1891.0,2.23279]
[1742158396833,2.97405,1891.1,1891.0,1.3867]
[1742158399938,0.84614,1890.9,1890.8,4.74486]
[1742158400138,0.84623,1890.7,1890.6,3.2078]
[1742158400738,1.56693,1890.7,1890.6,3.2078]
[1742158401445,1.4445,1890.8,1890.7,0.84623]
[1742158401739,1.4445,1890.8,1890.7,2.95253]
[1742158402328,0.84612,1891.0,1890.7,2.1063]
[1742158402528,0.84606,1891.1,1891.0,0.84609]
[1742158402738,1.4445,1891.0,1890.9,0.8461]
[1742158402938,1.4445,1891.0,1890.9,2.2798]
[1742158402939,2.29059,1891.0,1890.9,2.2798]
[1742158404136,0.84607,1891.1,1891.0,0.84607]
[1742158404432,2.18547,1891.1,1891.0,2.0738]
[1742158405243,2.18547,1891.1,1891.0,2.7351]
[1742158407742,2.18547,1891.1,1891.0,3.58119]
[1742158407938,2.18547,1891.1,1891.0,2.7351]
[1742158408140,0.85397155,1891.2,1891.1,0.84605]
[1742158408435,2.26787155,1891.2,1891.1,1.4226]
[1742158408834,2.26787155,1891.2,1891.0,2.23300155]
[1742158408835,0.84605,1891.1,1891.0,1.38694155]
[1742158409035,2.25995,1891.1,1891.0,2.23303155]
[1742158410437,2.25995,1891.1,1891.0,1.38694155]
[1742158410640,2.25995,1891.1,1891.0,2.23303155]
[1742158410942,2.25995,1891.1,1891.0,3.62803155]
[1742158412146,2.25995,1891.1,1891.0,2.78194155]
[1742158414542,1.4139,1891.1,1891.0,3.62803155]
[1742158414746,1.4139,1891.1,1891.0,6.83583155]
[1742158414942,0.00794155,1891.2,1891.1,0.84605]
[1742158415142,0.00794155,1891.2,1891.1,5.75395]
[1742158416746,0.85394155,1891.2,1891.1,5.75395]
[1742158417753,0.00794155,1891.2,1891.1,5.75395]
[1742158418453,0.85394155,1891.2,1891.1,5.75395]
[1742158418745,2.21024155,1891.2,1891.1,5.75395]
[1742158420351,2.21024155,1891.2,1891.1,4.9079]
[1742158420945,2.21024155,1891.2,1891.1,5.75395]
[1742158423242,2.21024155,1891.2,1891.1,4.9079]
[1742158423451,0.84605,1891.1,1891.0,0.00794155]
[1742158423760,2.21715,1891.1,1891.0,0.00794155]
[1742158424053,2.21715,1891.1,1891.0,1.44394155]
[1742158425047,2.21715,1891.1,1891.0,0.00794155]
[1742158431052,2.21715,1891.1,1891.0,1.36914155]
[1742158431358,2.21715,1891.1,1891.0,2.78964155]
[1742158431556,1.3711,1891.1,1891.0,3.63573155]
[1742158431857,1.3711,1891.1,1891.0,6.84353155]
[1742158432255,0.85397155,1891.2,1891.1,0.84605]
[1742158432549,0.85397155,1891.2,1891.1,5.73925]
[1742158433060,2.27757155,1891.2,1891.1,5.73925]
[1742158436862,1.43154155,1891.2,1891.1,5.73925]
[1742158437353,0.6697,1891.5,1891.4,0.84591]
[1742158437556,5.32228,1891.7,1891.4,0.84591]
[1742158437557,3.9294,1891.7,1891.4,0.84591]
[1742158437856,0.84587,1891.5,1891.4,0.84591]
[1742158438059,0.84585,1891.6,1891.5,0.84586]
[1742158438654,2.21905,1891.6,1891.5,0.84586]
[1742158438849,1.3732,1891.6,1891.5,0.84586]
[1742158439254,1.3732,1891.6,1891.5,2.30546]
[1742158442156,0.84573,1891.8,1891.7,0.84578]
[1742158442459,1.3725,1891.8,1891.7,0.84578]
[1742158442652,1.3725,1891.8,1891.7,4.37678]
[1742158442852,1.3725,1891.8,1891.7,6.44858]
[1742158443056,2.21823,1891.8,1891.7,6.44858]
[1742158443663,0.8457,1891.9,1891.8,0.84569]
[1742158443862,1.3407,1891.9,1891.8,2.17259]
[1742158444161,2.18639,1891.9,1891.8,2.17259]
[1742158444362,1.3407,1891.9,1891.8,2.17259]
[1742158444558,2.18639,1891.9,1891.8,2.17259]
[1742158444759,1.3407,1891.9,1891.8,2.17259]
[1742158444959,2.18639,1891.9,1891.8,2.17259]
[1742158447162,2.18639,1891.9,1891.8,1.3269]
[1742158447364,1.3407,1891.9,1891.8,2.17263]
[1742158448063,2.25758,1892.2,1891.8,4.5347]
[1742158448361,1.4461,1892.0,1891.9,2.92149]
[1742158449158,3.2078,1892.4,1891.9,2.0758]
[1742158449361,1.4026,1892.3,1892.2,0.84553]
[1742158449963,2.24811,1892.3,1892.2,0.84553]
[1742158450667,1.4026,1892.3,1892.2,0.84553]
[1742158450962,1.4026,1892.3,1892.2,1.53233]
[1742158451166,0.7012,1892.7,1892.2,0.6868]
[1742158451463,0.7012,1892.7,1892.5,0.84542]
[1742158451464,2.24798,1892.6,1892.5,0.84542]
[1742158451667,1.4026,1892.6,1892.5,0.84542]
[1742158452562,0.84529,1892.8,1892.7,0.84531]
[1742158452864,0.84533,1892.7,1892.6,3.529]
[1742158453767,2.30113,1892.7,1892.6,3.529]
[1742158455470,0.84547,1892.4,1892.3,3.2078]
[1742158456065,0.84547,1892.4,1892.3,0.39362702]
[1742158456364,0.84547,1892.4,1892.2,5.74973]
[1742158456566,1.3533,1892.3,1892.2,5.74973]
[1742158456963,2.19881,1892.3,1892.2,5.74973]
[1742158457570,1.3533,1892.3,1892.2,5.74973]
[1742158458475,2.19881,1892.3,1892.2,5.06293]
[1742158458864,2.19881,1892.3,1892.2,4.2174]
[1742158459373,1.3533,1892.3,1892.2,5.06295]
[1742158459768,2.19881,1892.3,1892.2,5.06295]
[1742158461074,2.19881,1892.3,1892.2,4.2174]
[1742158461276,2.19881,1892.3,1892.2,4.62034152]
[1742158462272,2.19881,1892.3,1892.2,1.09234152]
[1742158463475,2.19881,1892.3,1892.2,1.93789152]
[1742158464578,2.19881,1892.3,1892.2,0.40294152]
[1742158464776,1.3533,1892.3,1892.1,7.58036]
[1742158465076,2.22245,1892.2,1892.1,7.5804]
[1742158465277,2.22245,1892.2,1892.1,7.98559218]
[1742158465480,1.3769,1892.2,1892.1,4.77779218]
[1742158465977,2.22245,1892.2,1892.1,4.77779218]
[1742158466185,2.22245,1892.2,1892.1,3.93219218]
[1742158466484,2.22245,1892.2,1892.1,4.77779218]
[1742158466676,2.22245,1892.2,1892.1,6.11959218]
[1742158470481,1.3769,1892.2,1892.1,6.11959218]
[1742158471683,2.22245,1892.2,1892.1,6.11959218]
[1742158473388,1.3769,1892.2,1892.1,9.32739218]
[1742158473772,2.22245,1892.2,1892.1,9.32739218]
[1742158473969,2.22245,1892.2,1892.1,6.11959218]
[1742158475371,1.3769,1892.2,1892.1,6.11959218]
[1742158475585,1.3769,1892.2,1892.1,9.32739218]
[1742158475878,2.22245,1892.2,1892.1,9.32739218]
[1742158476979,1.3769,1892.2,1892.1,9.32739218]
[1742158477385,2.22245,1892.2,1892.1,9.32739218]
[1742158477881,1e-08,1892.2,1892.1,9.32739218]
[1742158478886,0.84548,1892.4,1892.2,0.84552]
[1742158479084,0.84548,1892.4,1892.3,1.3227]
[1742158479488,0.84548,1892.4,1892.3,2.0419]
[1742158480087,0.84548,1892.4,1892.3,1.3227]
[1742158481284,0.84555,1892.2,1892.1,5.28969218]
[1742158481484,0.84555,1892.2,1892.1,4.8845]
[1742158481891,1.56125,1892.2,1892.1,4.8845]
[1742158482193,2.99105,1892.2,1892.1,4.8845]
[1742158484386,2.27535,1892.2,1892.1,4.8845]
[1742158484792,0.84554,1892.3,1892.2,0.84555]
[1742158484991,2.17871,1892.3,1892.2,1.4077]
[1742158486192,2.17871,1892.3,1892.2,2.1246]
[1742158494495,0.84551,1892.3,1892.2,2.1246]
[1742158494893,2.16441,1892.3,1892.2,2.1246]
[1742158497392,2.16441,1892.3,1892.2,2.97015]
[1742158498295,0.84551,1892.3,1892.2,2.97015]
[1742158498792,2.17861,1892.3,1892.2,2.97015]
[1742158500194,2.17861,1892.3,1892.2,2.1246]
[1742158500496,2.17861,1892.3,1892.2,2.97015]
[1742158501094,0.84551,1892.3,1892.2,2.97015]
[1742158503094,2.30801,1892.3,1892.2,2.1246]
[1742158506893,2.30801,1892.3,1892.2,1.4077]
[1742158513506,2.30801,1892.3,1892.2,2.25325]
[1742158514412,0.84551,1892.3,1892.2,2.25325]
[1742158515203,0.84551,1892.3,1892.2,2.25321]
[1742158515402,0.84544,1892.5,1892.4,0.84545]
[1742158515609,0.84544,1892.5,1892.2,4.6155]
[1742158515610,0.84547,1892.4,1892.3,2.20537]
[1742158515810,2.16556,1892.5,1892.4,0.84547]
[1742158516009,2.16556,1892.5,1892.4,2.0391]
[1742158516213,2.16556,1892.5,1892.4,2.88457]
[1742158516609,0.84546,1892.5,1892.4,2.88457]
[1742158517213,3.2078,1892.7,1892.6,0.84538]
[1742158518113,4.05313,1892.7,1892.6,0.84538]
[1742158518307,1.458,1892.8,1892.5,2.1661]
[1742158518308,0.84538,1892.6,1892.5,2.1661]
[1742158518514,0.84537,1892.7,1892.5,2.1661]
[1742158518715,0.84537,1892.7,1892.6,1.3207]
[1742158519509,1.55557,1892.7,1892.6,1.3207]
[1742158519709,0.84542,1892.5,1892.4,4.2022]
[1742158522517,0.84542,1892.5,1892.4,6.45827]
[1742158524915,0.84542,1892.5,1892.4,1.4106]
[1742158525407,0.84551,1892.3,1892.2,3.522]
[1742158525608,0.84551,1892.3,1892.2,1.3215]
[1742158526319,2.25611,1892.3,1892.2,1.3215]
[1742158531225,5.46391,1892.3,1892.2,1.3215]
[1742158531427,0.84555,1892.2,1892.1,0.6849]
[1742158531621,0.8456,1892.1,1892.0,0.00794155]
[1742158531826,2.222,1892.1,1892.0,0.00794155]
[1742158537029,5.4298,1892.1,1892.0,0.00794155]
[1742158541624,4.0534,1892.1,1892.0,0.00794155]
[1742158541929,0.8456,1892.1,1892.0,0.00794155]
[1742158542634,0.8456,1892.1,1892.0,0.66754155]
[1742158543035,0.8456,1892.1,1892.0,2.79044155]
[1742158546334,0.8456,1892.1,1892.0,3.63608155]
[1742158547929,0.8456,1892.1,1892.0,2.79044155]
[1742158548837,0.8456,1892.1,1892.0,3.63608155]
[1742158549234,0.8456,1892.1,1892.0,2.79044155]
[1742158550930,3.2078,1892.3,1892.0,2.79044155]
[1742158551133,0.84555,1892.2,1892.1,1.3439]
[1742158553032,0.84555,1892.2,1892.1,2.1895]
[1742158553233,4.6416,1892.4,1892.1,1.3439]
[1742158553432,4.6416,1892.4,1892.0,1.39574155]
[1742158553433,0.8456,1892.1,1892.0,2.24137155]
[1742158553628,0.84559,1892.2,1892.1,0.8456]
[1742158555441,0.8456,1892.1,1892.0,2.24137155]
[1742158555640,1.4338,1892.3,1892.0,1.39574155]
[1742158555843,0.84559,1892.2,1892.1,0.8456]
[1742158556035,0.8456,1892.1,1892.0,2.24135155]
[1742158557341,0.8456,1892.1,1892.0,1.39574155]
[1742158558238,2.2777,1892.1,1892.0,1.39574155]
[1742158565143,0.8456,1892.1,1892.0,1.39574155]
[1742158566543,0.84557,1892.2,1892.1,0.84556]
[1742158567054,0.84557,1892.2,1892.1,2.27056]
[1742158567556,1.3288,1892.3,1892.2,0.84555]
[1742158567740,2.17435,1892.3,1892.2,1.425]
[1742158570755,2.17435,1892.3,1892.2,2.27055]
[1742158570958,2.17435,1892.3,1892.2,1.425]
[1742158575860,2.17435,1892.3,1892.2,2.27055]
[1742158576161,0.84555,1892.3,1892.2,2.27055]
[1742158577055,2.27729,1892.4,1892.3,0.84551]
[1742158577256,2.27729,1892.4,1892.3,3.72041]
[1742158577454,2.83472,1892.6,1892.5,0.8454]
[1742158577455,0.8454,1892.6,1892.5,0.8454]
[1742158577657,0.84538,1892.6,1892.5,0.84538]
[1742158578662,0.84538,1892.6,1892.5,4.36338]
[1742158580463,0.84533,1892.8,1892.7,0.84532]
[1742158580666,0.84533,1892.7,1892.6,2.23308]